bitfinex/quotes_SOLUSD_20241113
["timestamp","ask_amount","ask_price","bid_price","bid_amount"]
[1731522136663,0.12549,218.87,218.77,3.1997]
[1731522137460,23.902374,218.89,218.77,3.1997]
[1731522137676,23.776884,218.86,218.77,3.1997]
[1731522138579,35.90776258,218.83,218.7,0.9144]
[1731522138763,23.776884,218.77,218.64,3.2015]
[1731522139582,0.12549,218.76,218.64,3.2015]
[1731522140498,23.902374,218.74,218.64,3.2015]
[1731522140678,23.902374,218.72,218.61,5.33868706]
[1731522140980,0.12549,218.72,218.61,5.33868706]
[1731522141161,23.776884,218.74,218.61,7.62578706]
[1731522141560,23.776884,218.74,218.61,12.20478706]
[1731522141774,23.776884,218.75,218.61,12.20478706]
[1731522141987,16.5378,218.78,218.62,20.0]
[1731522141988,23.902374,218.77,218.62,20.0]
[1731522142768,23.902374,218.75,218.63,3.2016]
[1731522143280,21.1087,218.78,218.63,3.2016]
[1731522143680,0.12549,218.77,218.64,20.0]
[1731522143882,16.5378,218.78,218.64,20.0]
[1731522144089,15.9017,218.85,218.65,0.12549]
[1731522144393,20.4711,218.85,218.66,20.0]
[1731522144765,22.0330137,218.84,218.67,7.7742]
[1731522144969,22.0330137,218.83,218.68,20.0]
[1731522145164,22.1585037,218.82,218.68,20.0]
[1731522145464,0.12549,218.8,218.67,3.2011]
[1731522145869,22.1585037,218.82,218.67,3.2011]
[1731522146072,0.12549,218.8,218.67,3.2011]
[1731522146384,4.5705,218.79,218.67,2.2865]
[1731522146569,23.902374,218.78,218.67,2.2865]
[1731522147678,23.902374,218.8,218.67,3.2011]
[1731522147873,23.902374,218.77,218.67,3.2011]
[1731522149282,4.5688,218.88,218.68,22.40549]
[1731522149594,0.4272735,218.92,218.69,25.75653544]
[1731522149773,4.9951735,218.92,218.69,25.85653544]
[1731522149973,22.0330137,218.91,218.69,25.75653544]
[1731522150284,0.12549,218.91,218.69,25.75653544]
[1731522150500,4.9951735,218.92,218.69,25.75653544]
[1731522150867,4.9951735,218.92,218.7,28.355884]
[1731522151087,4.9951735,218.92,218.73,20.0]
[1731522151481,4.9951735,218.92,218.74,7.7717]
[1731522151686,22.0330137,218.9,218.75,20.0]
[1731522151886,0.12549,218.87,218.74,7.7717]
[1731522152181,0.12549,218.86,218.74,7.7717]
[1731522152570,23.776884,218.87,218.74,7.7717]
[1731522153190,23.776884,218.87,218.75,20.0]
[1731522153571,23.776884,218.87,218.76,7.771]
[1731522153784,23.902374,218.89,218.77,20.0]
[1731522155389,23.902374,218.89,218.78,3.1995]
[1731522156280,0.12549,218.91,218.79,20.0]
[1731522156894,4.69359,218.91,218.78,3.1995]
[1731522157189,0.12549,218.89,218.78,3.1995]
[1731522157395,23.902374,218.87,218.78,2.2854]
[1731522157879,23.776884,218.87,218.78,2.2854]
[1731522158195,23.776884,218.89,218.78,2.2854]
[1731522158377,0.12549,218.89,218.78,2.2854]
[1731522159184,0.12549,218.89,218.78,3.1995]
[1731522159895,28.470874,218.89,218.78,3.1995]
[1731522160192,23.776884,218.9,218.78,3.1995]
[1731522160682,0.12549,218.89,218.78,3.1995]
[1731522162704,0.12549,218.87,218.78,3.1995]
[1731522164076,0.4272735,218.92,218.79,20.0]
[1731522164283,0.4272735,218.92,218.81,20.0]
[1731522164479,0.4272735,218.92,218.83,20.0]
[1731522165193,0.4272735,218.92,218.81,20.0]
[1731522165399,0.12549,218.91,218.81,20.0]
[1731522166316,0.12549,218.91,218.82,3.1988]
[1731522166983,0.12549,218.89,218.81,0.914]
[1731522167493,23.902374,218.87,218.75,9.6966]
[1731522167891,23.776884,218.89,218.75,9.6966]
[1731522168084,23.776884,218.89,218.75,14.268]
[1731522168311,0.12549,218.89,218.75,14.268]
[1731522168479,0.12549,218.89,218.75,20.02453544]
[1731522168688,0.12549,218.89,218.76,20.0]
[1731522170382,23.902374,218.91,218.77,3.1997]
[1731522170684,23.776884,218.88,218.77,3.1997]
[1731522170903,0.12549,218.87,218.77,3.1997]
[1731522171703,23.902374,218.89,218.77,3.1997]
[1731522171888,23.902374,218.89,218.78,20.0]
[1731522172289,23.902374,218.9,218.79,3.1993]
[1731522172481,23.902374,218.9,218.79,2.2852]
[1731522172482,4.79379,218.9,218.79,2.2852]
[1731522172805,23.902374,218.84,218.75,2.2856]
[1731522172985,45.9353877,218.84,218.69,6.3382]
[1731522173311,0.12549,218.82,218.71,2.286]
[1731522174092,0.12549,218.8,218.71,2.286]
[1731522174281,23.776884,218.84,218.71,2.286]
[1731522174487,0.5272735,218.92,218.71,2.286]
[1731522174795,0.4272735,218.92,218.73,0.12549]
[1731522174985,0.4272735,218.92,218.74,5.75653544]
[1731522175182,0.12549,218.91,218.74,5.75653544]
[1731522175384,0.12549,218.91,218.75,20.0]
[1731522175602,0.4272735,218.92,218.75,20.0]
[1731522175903,0.4272735,218.92,218.76,20.0]
[1731522176106,24.2041575,218.92,218.78,20.0]
[1731522176902,0.12549,218.91,218.78,20.0]
[1731522177105,0.12549,218.89,218.78,20.0]
[1731522178101,0.12549,218.89,218.79,3.1993]
[1731522178288,23.902374,218.89,218.79,3.1993]
[1731522179386,45.9353877,218.91,218.79,3.1993]
[1731522179585,23.902374,218.88,218.79,3.1993]
[1731522180510,23.776884,218.9,218.79,3.1993]
[1731522180815,0.12549,218.87,218.79,3.1993]
[1731522181192,0.12549,218.85,218.79,2.2852]
[1731522181390,23.902374,218.85,218.79,2.2852]
[1731522181600,23.902374,218.85,218.75,4.5712]
[1731522181905,23.902374,218.87,218.75,4.5712]
[1731522182113,0.12549,218.87,218.75,4.5712]
[1731522182606,23.902374,218.85,218.75,4.5712]
[1731522182787,23.902374,218.85,218.72,20.0]
[1731522182788,23.902374,218.83,218.71,7.7727]
[1731522182988,0.12549,218.81,218.71,7.7727]
[1731522183194,23.902374,218.81,218.71,3.2005]
[1731522183611,23.902374,218.79,218.71,3.2005]
[1731522183795,23.902374,218.79,218.71,2.2861]
[1731522184200,23.776884,218.79,218.71,2.2861]
[1731522184710,0.12549,218.78,218.71,2.2861]
[1731522185690,23.776884,218.81,218.71,2.2861]
[1731522186013,0.12549,218.82,218.71,2.2861]
[1731522186709,0.12549,218.82,218.71,22.2861]
[1731522187396,4.568,218.91,218.71,27.7727]
[1731522187599,4.568,218.91,218.73,20.0]
[1731522187793,4.568,218.91,218.73,5.75653544]
[1731522188010,0.4272735,218.92,218.75,20.0]
[1731522188312,0.4272735,218.92,218.75,25.75653544]
[1731522189294,0.4272735,218.92,218.78,27.7703]
[1731522189493,0.4272735,218.92,218.78,32.3411]
[1731522190412,0.12549,218.91,218.78,32.3411]
[1731522190791,0.12549,218.91,218.78,27.7703]
[1731522191025,23.902374,218.91,218.78,27.7703]
[1731522191397,22.0330137,218.88,218.78,3.1995]
[1731522191712,23.902374,218.86,218.78,3.1995]
[1731522191912,0.12549,218.86,218.78,3.1995]
[1731522192411,0.12549,218.86,218.72,6.5816]
[1731522192412,0.12549,218.84,218.76,0.9142]
[1731522192620,23.902374,218.84,218.76,0.9142]
[1731522193315,23.902374,218.84,218.74,2.2858]
[1731522193513,23.902374,218.82,218.74,2.2858]
[1731522193821,0.12549,218.82,218.74,2.2858]
[1731522194303,0.12549,218.83,218.74,2.2858]
[1731522194617,23.902374,218.83,218.74,2.2858]
[1731522195402,23.776884,218.85,218.74,3.2001]
[1731522195714,6.1917,218.87,218.74,3.2001]
[1731522195903,0.12549,218.86,218.74,3.2001]
[1731522196716,0.12549,218.89,218.74,3.2001]
[1731522197095,28.6519872,218.92,218.74,7.7717]
[1731522197314,22.0330137,218.91,218.75,20.0]
[1731522197513,26.6011137,218.91,218.76,3.1998]
[1731522197817,22.0330137,218.9,218.76,3.1998]
[1731522198203,0.12549,218.89,218.76,3.1998]
[1731522198403,0.12549,218.89,218.77,20.0]
[1731522198602,22.0330137,218.9,218.77,20.0]
[1731522198603,0.12549,218.87,218.78,3.1995]
[1731522199016,22.0330137,218.9,218.78,3.1995]
[1731522199214,26.6010137,218.91,218.78,3.1995]
[1731522199601,0.12549,218.9,218.78,3.1995]
[1731522200320,0.12549,218.9,218.78,2.2854]
[1731522200613,23.902374,218.9,218.78,2.2854]
[1731522201829,28.470774,218.9,218.78,3.1995]
[1731522201998,0.4272735,218.92,218.79,20.0]
[1731522202714,22.0330137,218.91,218.79,20.0]
[1731522202916,0.4272735,218.92,218.78,7.7703]
[1731522202917,0.12549,218.89,218.78,7.7703]
[1731522203822,23.902374,218.91,218.78,4.5708]
[1731522203998,0.4272735,218.92,218.78,4.5708]
[1731522204531,0.12549,218.91,218.78,4.5708]
[1731522204702,22.0330137,218.9,218.76,4.5712]
[1731522204900,22.0330137,218.89,218.76,4.5712]
[1731522205236,0.12549,218.88,218.76,4.5712]
[1731522205522,23.902374,218.88,218.76,4.5712]
[1731522205921,23.902374,218.87,218.76,4.5712]
[1731522206821,4.5683,218.9,218.76,4.5712]
[1731522207125,0.4272735,218.92,218.76,4.5712]
[1731522207300,22.0330137,218.89,218.73,23.2002]
[1731522207503,0.12549,218.87,218.73,23.2002]
[1731522207925,27.0281872,218.92,218.73,27.772]
[1731522208105,27.0281872,218.92,218.73,33.52853544]
[1731522208421,0.12549,218.91,218.73,33.52853544]
[1731522208719,4.9951735,218.92,218.73,33.52853544]
[1731522209099,23.902374,218.91,218.73,33.52853544]
[1731522210799,0.12549,218.91,218.74,0.12549]
[1731522211003,0.12549,218.89,218.73,33.52853544]
[1731522211907,0.12549,218.85,218.73,7.772]
[1731522213118,0.12549,218.85,218.75,3.1999]
[1731522213343,0.12549,218.85,218.75,7.7713]
[1731522213630,0.12549,218.85,218.76,20.0]
[1731522214530,23.902374,218.87,218.76,20.0]
[1731522214835,0.12549,218.85,218.76,20.0]
[1731522215327,0.12549,218.85,218.77,3.1997]
[1731522215531,0.12549,218.83,218.77,2.2855]
[1731522216336,0.12549,218.83,218.77,3.1997]
[1731522216533,0.12549,218.81,218.73,3.2002]
[1731522217416,23.902374,218.83,218.73,3.2002]
[1731522217617,0.12549,218.83,218.74,20.0]
[1731522218137,0.12549,218.87,218.74,20.0]
[1731522218316,0.12549,218.87,218.75,4.579]
[1731522218635,6.2539,218.9,218.76,27.771]
[1731522218636,0.12549,218.89,218.76,27.771]
[1731522218844,23.902374,218.89,218.76,27.771]
[1731522219339,23.902374,218.89,218.77,24.579]
[1731522219639,28.470874,218.89,218.78,23.1995]
[1731522219834,23.902374,218.89,218.78,27.7703]
[1731522220041,0.4272735,218.92,218.78,27.7703]
[1731522220417,0.4272735,218.92,218.79,24.579]
[1731522220743,0.12549,218.91,218.79,24.579]
[1731522220935,0.4272735,218.92,218.79,24.579]
[1731522221117,0.4272735,218.92,218.81,20.0]
[1731522221434,15.3717,219.03,218.83,24.579]
[1731522221639,19.9373,219.03,218.85,24.579]
[1731522221820,0.12549,219.02,218.85,24.579]
[1731522222638,0.12549,219.0,218.87,20.0]
[1731522223022,4.5659,219.02,218.87,20.0]
[1731522223539,0.12549,219.01,218.87,20.0]
[1731522224123,0.12549,219.01,218.88,3.198]
[1731522224641,23.902374,219.01,218.88,3.198]
[1731522225543,23.902374,219.01,218.88,7.7667]
[1731522225723,23.902374,219.01,218.89,20.0]
[1731522226125,23.902374,219.02,218.88,3.198]
[1731522226333,6.5415,219.07,218.91,20.0]
[1731522226519,21.98345701,219.08,218.91,20.0]
[1731522226842,21.98345701,219.05,218.91,20.0]
[1731522227019,0.12549,219.03,218.91,20.0]
[1731522227627,23.902374,219.05,218.92,3.1974]
[1731522227917,45.88583101,219.05,218.92,3.1974]
[1731522228361,0.12549,219.03,218.92,3.1974]
[1731522228523,23.902374,219.03,218.92,3.1974]
[1731522228735,45.88583101,219.03,218.92,3.1974]
[1731522228943,50.45143101,219.03,218.92,3.1974]
[1731522229144,28.467974,219.03,218.92,3.1974]
[1731522229328,23.776884,219.06,218.92,7.7652]
[1731522229519,26.64755701,219.1,218.93,20.0]
[1731522229833,21.98345701,219.07,218.93,20.0]
[1731522230020,22.10894701,219.08,218.93,20.0]
[1731522230224,22.10894701,219.06,218.93,20.0]
[1731522230439,21.98345701,219.06,218.93,20.0]
[1731522230821,0.12549,219.06,218.93,20.0]
[1731522231022,23.902374,219.06,218.94,3.1971]
[1731522231431,0.12549,219.04,218.94,3.1971]
[1731522232015,0.12549,219.02,218.94,3.1971]
[1731522232749,22.10894701,219.02,218.94,3.1971]
[1731522233043,0.12549,219.0,218.94,3.1971]
[1731522233218,0.12549,218.98,218.91,2.284]
[1731522233420,0.12549,218.98,218.91,3.1975]
[1731522234233,23.902374,219.0,218.91,3.1975]
[1731522234831,23.902374,219.01,218.91,3.1975]
[1731522236333,0.12549,219.01,218.91,7.7655]
[1731522236534,23.902374,219.01,218.91,7.7655]
[1731522236743,23.902374,219.01,218.91,3.1975]
[1731522238646,23.902374,219.0,218.91,3.1975]
[1731522239035,0.12549,218.99,218.91,3.1975]
[1731522240050,4.5653,219.05,218.91,23.1975]
[1731522240452,0.12549,219.06,218.91,23.1975]
[1731522240636,0.12549,219.03,218.91,23.1975]
[1731522240835,21.98345701,219.05,218.91,23.1975]
[1731522241034,21.98345701,219.04,218.91,23.1975]
[1731522241338,23.902374,219.03,218.91,27.7655]
[1731522241535,23.902374,219.01,218.91,3.1975]
[1731522241742,0.12549,218.99,218.91,3.1975]
[1731522242459,23.902374,218.97,218.91,3.1975]
[1731522242631,0.12549,218.95,218.89,0.9136]
[1731522242832,23.902374,218.95,218.88,0.9137]
[1731522243037,45.88583101,218.95,218.88,0.9137]
[1731522243368,23.902374,218.88,218.8,15.203]
[1731522243540,45.88583101,218.86,218.8,0.914]
[1731522243743,23.902374,218.86,218.8,0.914]
[1731522243937,45.88583101,218.86,218.8,0.914]
[1731522244134,23.776884,218.87,218.8,7.7694]
[1731522244446,23.776884,218.89,218.8,7.7694]
[1731522244756,0.12549,218.88,218.8,3.1991]
[1731522245161,0.12549,218.89,218.8,3.1991]
[1731522245329,0.12549,218.84,218.76,2.2856]
[1731522245649,0.12549,218.84,218.77,0.9141]
[1731522245837,23.776884,218.86,218.77,0.9141]
[1731522246037,4.568,218.92,218.77,6.67063544]
[1731522246245,23.776884,218.91,218.77,6.67063544]
[1731522246443,0.12549,218.9,218.77,6.67063544]
[1731522246752,0.12549,218.9,218.77,20.9141]
[1731522247160,0.12549,218.9,218.77,23.1996]
[1731522247161,0.12549,218.88,218.77,23.1996]
[1731522247339,23.902374,218.87,218.77,23.1996]
[1731522247540,37.65695884,218.87,218.77,23.1996]
[1731522247753,0.12549,218.82,218.77,2.2855]
[1731522247949,23.776884,218.84,218.77,2.2855]
[1731522248251,0.12549,218.83,218.77,2.2855]
[1731522248958,18.32308484,218.89,218.77,3.1997]
[1731522249144,4.5685,218.89,218.77,2.2855]
[1731522249456,4.5683,218.9,218.77,2.2855]
[1731522249831,0.12549,218.86,218.77,2.2855]
[1731522250036,13.88007484,218.86,218.77,2.2855]
[1731522250536,0.12549,218.86,218.77,2.2855]
[1731522250955,0.12549,218.87,218.77,2.2855]
[1731522251434,42.22605884,218.87,218.77,2.2855]
[1731522251634,0.12549,218.82,218.77,2.2855]
[1731522252031,23.902374,218.82,218.77,2.2855]
[1731522252450,37.65695884,218.82,218.74,0.9143]
[1731522252637,23.776884,218.82,218.74,0.9143]
[1731522253044,0.12549,218.81,218.74,0.9143]
[1731522253954,23.776884,218.82,218.74,27.7717]
[1731522254166,167.1797,218.95,218.74,27.7717]
[1731522254167,13.75458484,218.93,218.74,27.7717]
[1731522254453,13.75458484,218.94,218.74,33.28650766]
[1731522254841,22.00228802,218.94,218.74,33.28650766]
[1731522255041,22.00228802,218.93,218.74,33.28650766]
[1731522255247,0.12549,218.92,218.74,37.85810766]
[1731522255442,23.902374,218.92,218.74,37.85810766]
[1731522255957,23.902374,218.92,218.74,42.29882231]
[1731522256160,4.5678,218.93,218.74,42.29882231]
[1731522256838,4.69349,218.92,218.74,42.29882231]
[1731522257444,0.12549,218.9,218.74,42.29882231]
[1731522257659,22.12777802,218.9,218.74,37.85810766]
[1731522257867,23.902374,218.88,218.74,12.3433]
[1731522258175,0.12549,218.88,218.74,12.3433]
[1731522258467,0.12549,218.9,218.74,12.3433]
[1731522258763,22.00228802,218.93,218.75,15.5266]
[1731522259065,0.12549,218.89,218.77,20.0]
[1731522259266,0.12549,218.85,218.76,3.1998]
[1731522259564,0.12549,218.89,218.73,6.6256]
[1731522259565,0.12549,218.8,218.73,6.6256]
[1731522259739,0.12549,218.8,218.73,9.8258]
[1731522259935,23.902374,218.77,218.73,3.2002]
[1731522260558,23.902374,218.77,218.73,2.2859]
[1731522260756,0.12549,218.78,218.73,2.2859]
[1731522261471,0.12549,218.78,218.7,15.5266]
[1731522261472,22.00228802,218.76,218.7,15.5266]
[1731522261764,0.12549,218.75,218.7,18.7272]
[1731522262145,23.776884,218.77,218.7,18.7272]
[1731522262344,22.00228802,218.87,218.7,18.7272]
[1731522262671,22.00228802,218.9,218.7,28.81440766]
[1731522262878,4.5682,218.91,218.71,5.51480766]
[1731522263047,22.00228802,218.9,218.72,20.0]
[1731522263240,22.00228802,218.89,218.72,20.0]
[1731522263464,22.00228802,218.9,218.72,20.0]
[1731522263766,23.902374,218.9,218.72,20.0]
[1731522264267,23.902374,218.88,218.73,7.772]
[1731522264469,23.902374,218.88,218.74,20.0]
[1731522265155,23.776884,218.89,218.74,20.0]
[1731522265469,0.12549,218.88,218.74,20.0]
[1731522266378,0.12549,218.88,218.75,7.7713]
[1731522266671,0.12549,218.88,218.76,20.0]
[1731522266851,26.69647802,218.88,218.76,20.0]
[1731522267051,0.12549,218.86,218.76,20.0]
[1731522267263,0.12549,218.86,218.75,3.1999]
[1731522267573,23.902374,218.84,218.75,3.1999]
[1731522267871,45.77917202,218.84,218.75,3.1999]
[1731522268072,22.12777802,218.83,218.7,20.099]
[1731522268365,0.12549,218.81,218.71,7.7727]
[1731522268750,0.12549,218.83,218.71,7.7727]
[1731522268950,22.12777802,218.83,218.71,7.7727]
[1731522269348,0.12549,218.83,218.72,20.0]
[1731522269552,0.12549,218.81,218.72,20.0]
[1731522270050,23.902374,218.79,218.71,3.2005]
[1731522270470,23.776884,218.79,218.71,3.2005]
[1731522270660,23.776884,218.79,218.71,7.7727]
[1731522271466,23.902374,218.81,218.72,20.0]
[1731522271775,0.12549,218.79,218.71,3.2005]
[1731522271966,23.902374,218.79,218.71,3.2005]
[1731522272167,0.12549,218.79,218.71,3.2005]
[1731522272472,45.77917202,218.81,218.71,3.2005]
[1731522272654,22.00228802,218.87,218.71,7.7727]
[1731522272976,4.5688,218.88,218.72,20.0]
[1731522273270,22.12777802,218.87,218.72,20.0]
[1731522273648,0.12549,218.84,218.72,20.0]
[1731522273851,0.12549,218.84,218.71,7.7727]
[1731522273852,22.00228802,218.82,218.73,3.2002]
[1731522274151,23.902374,218.81,218.73,3.2002]
[1731522274358,45.90466202,218.81,218.73,3.2002]
[1731522274566,0.12549,218.81,218.73,3.2002]
[1731522274973,23.776884,218.83,218.73,3.2002]
[1731522274974,45.77917202,218.83,218.73,3.2002]
[1731522275263,23.902374,218.81,218.73,2.2859]
[1731522276076,22.12777802,218.82,218.73,2.2859]
[1731522276256,0.12549,218.8,218.73,2.2859]
[1731522277075,0.12549,218.81,218.73,2.2859]
[1731522277250,0.12549,218.79,218.73,2.2859]
[1731522277457,23.902374,218.78,218.73,2.2859]
[1731522277779,45.90466202,218.76,218.71,0.9144]
[1731522277959,0.12549,218.74,218.71,0.9144]
[1731522278158,0.12549,218.74,218.71,3.2005]
[1731522278371,23.776884,218.75,218.71,3.2005]
[1731522279349,0.12549,218.74,218.71,3.2005]
[1731522280353,0.12549,218.75,218.71,3.2005]
[1731522281069,23.776884,218.79,218.71,3.2005]
[1731522281263,23.902374,218.78,218.71,3.2005]
[1731522281653,0.12549,218.75,218.71,3.2005]
[1731522282278,0.12549,218.77,218.71,3.2005]
[1731522282676,23.776884,218.79,218.71,23.2005]
[1731522282975,22.00228802,218.85,218.71,27.7727]
[1731522283556,4.4315861,218.91,218.71,27.7727]
[1731522283557,22.00228802,218.87,218.71,27.7727]
[1731522283870,22.00228802,218.88,218.71,32.3449]
[1731522284080,4.5681,218.91,218.71,32.3449]
[1731522284081,22.00228802,218.91,218.73,20.0]
[1731522284261,22.00228802,218.92,218.73,20.0]
[1731522284468,22.00228802,218.9,218.73,20.0]
[1731522284671,6.3986,218.94,218.73,20.0]
[1731522284672,22.00228802,218.87,218.73,20.0]
[1731522284867,22.12777802,218.84,218.73,20.0]
[1731522285181,22.12777802,218.82,218.72,6.59]
[1731522285362,0.1,218.89,218.72,6.59]
[1731522285363,0.12549,218.79,218.72,6.59]
[1731522285674,23.902374,218.79,218.72,6.59]
[1731522286059,23.902374,218.8,218.73,3.2002]
[1731522286462,45.90466202,218.8,218.73,3.2002]
[1731522286682,50.47506202,218.8,218.73,3.2002]
[1731522286861,23.902374,218.78,218.73,1.95721]
[1731522287292,0.12549,218.78,218.73,1.95721]
[1731522288358,0.12549,218.79,218.73,2.87151]
[1731522288558,22.00228802,218.83,218.73,7.44331]
[1731522288783,0.12549,218.82,218.73,7.44331]
[1731522289484,0.12549,218.77,218.73,2.87151]
[1731522289685,22.00228802,218.8,218.73,2.87151]
[1731522289863,22.00228802,218.81,218.73,2.87151]
[1731522290059,22.00228802,218.8,218.73,2.87151]
[1731522290776,22.00228802,218.79,218.73,2.87151]
[1731522290967,22.00228802,218.8,218.73,2.87151]
[1731522291170,0.12549,218.8,218.73,2.87151]
[1731522291692,22.00228802,218.8,218.73,2.87151]
[1731522292263,22.12777802,218.79,218.73,2.87151]
[1731522292587,22.00228802,218.8,218.73,2.87151]
[1731522293884,22.00228802,218.79,218.73,2.87151]
[1731522294377,0.12549,218.8,218.73,4.8003]
[1731522295193,0.12549,218.81,218.73,4.8003]
[1731522295359,13.8919223,218.81,218.73,11.658]
[1731522295785,0.12549,218.8,218.73,11.658]
[1731522298081,13.7664323,218.81,218.74,23.776884]
[1731522298396,13.7664323,218.83,218.74,23.776884]
[1731522298563,0.12549,218.82,218.74,23.776884]
[1731522298986,13.8919223,218.82,218.74,23.776884]
[1731522299174,0.12549,218.82,218.74,23.776884]
[1731522299374,13.8919223,218.82,218.74,23.776884]
[1731522299685,0.12549,218.84,218.74,23.776884]
[1731522299893,13.7664323,218.87,218.76,23.776884]
[1731522300196,13.7664323,218.89,218.78,23.776884]
[1731522300566,0.12549,218.88,218.78,23.776884]
[1731522300884,13.7664323,218.89,218.8,23.776884]
[1731522301060,13.7664323,218.92,218.82,23.776884]
[1731522301267,0.12549,218.91,218.82,23.776884]
[1731522301476,13.8919223,218.91,218.82,23.776884]
[1731522301781,0.12549,218.91,218.82,23.776884]
[1731522301982,13.7664323,218.95,218.84,23.776884]
[1731522302164,13.7664323,218.95,218.87,23.776884]
[1731522302483,13.7664323,218.97,218.87,23.776884]
[1731522302683,13.7664323,219.02,218.9,20.0]
[1731522302883,13.7664323,218.98,218.91,23.776884]
[1731522303190,13.7664323,218.97,218.91,23.776884]
[1731522303380,13.7664323,218.93,218.86,4.7975]
[1731522303990,0.12549,218.93,218.86,4.7975]
[1731522304589,13.7664323,218.93,218.86,4.7975]
[1731522304892,13.8919223,218.94,218.86,4.7975]
[1731522305076,4.567,218.96,218.86,4.7975]
[1731522305077,13.8919223,218.95,218.86,4.7975]
[1731522305463,0.12549,218.93,218.86,4.7975]
[1731522306502,13.7664323,218.95,218.87,23.776884]
[1731522307286,0.12549,218.94,218.87,23.776884]
[1731522307484,0.12549,218.94,218.84,26.8541]
[1731522307791,13.8919223,218.94,218.88,3.4265]
[1731522308170,0.12549,218.94,218.88,3.4265]
[1731522308594,13.8919223,218.94,218.88,3.4265]
[1731522309177,0.12549,218.89,218.85,1.3708]
[1731522309378,0.12549,218.92,218.85,4.7978]
[1731522309573,13.7664323,218.94,218.85,4.7978]
[1731522309789,0.12549,218.93,218.85,4.7978]
[1731522310501,6.94457498,219.03,218.85,4.7978]
[1731522310502,0.12549,218.94,218.86,23.776884]
[1731522310879,13.7664323,218.96,218.86,23.776884]
[1731522311178,13.7664323,219.0,218.88,23.776884]
[1731522311479,13.7664323,218.98,218.91,20.0]
[1731522311675,13.7664323,218.98,218.92,4.7962]
[1731522311891,0.12549,218.93,218.87,3.4266]
[1731522312192,13.7664323,218.94,218.87,3.4266]
[1731522312379,13.7664323,218.96,218.87,3.4266]
[1731522312577,13.7664323,218.97,218.88,23.776884]
[1731522312981,0.12549,218.96,218.88,23.776884]
[1731522313395,13.8919223,218.96,218.88,23.776884]
[1731522313694,13.8919223,218.94,218.87,3.4266]
[1731522313894,0.12549,218.92,218.87,3.4266]
[1731522314274,13.7664323,218.92,218.84,4.7979]
[1731522314468,13.8919223,218.91,218.84,4.7979]
[1731522314668,0.12549,218.88,218.84,4.7979]
[1731522315289,13.8919223,218.87,218.8,3.4277]
[1731522315482,13.7664323,218.83,218.8,3.4277]
[1731522315683,0.12549,218.82,218.77,1.3713]
[1731522316193,0.12549,218.82,218.77,4.7995]
[1731522316492,13.7664323,218.81,218.77,4.7995]
[1731522316672,13.7664323,218.83,218.77,4.7995]
[1731522316873,0.12549,218.82,218.77,4.7995]
[1731522317072,13.8919223,218.82,218.77,4.7995]
[1731522317291,0.12549,218.82,218.77,4.7995]
[1731522317599,13.8919223,218.83,218.77,3.4282]
[1731522318574,13.7664323,218.82,218.74,1.3714]
[1731522318781,13.8919223,218.81,218.74,4.8001]
[1731522318986,0.12549,218.81,218.74,4.8001]
[1731522319381,13.7664323,218.8,218.74,4.8001]
[1731522319584,4.5698,218.83,218.71,16.0003]
[1731522319585,0.12549,218.76,218.71,1.3716]
[1731522319794,13.8919223,218.76,218.71,1.3716]
[1731522320305,13.7664323,218.74,218.7,3.4293]
[1731522320787,13.7664323,218.73,218.7,3.4293]
[1731522320987,13.7664323,218.77,218.7,3.4293]
[1731522321180,13.7664323,218.8,218.7,3.4293]
[1731522321481,0.12549,218.78,218.7,3.4293]
[1731522322196,13.8919223,218.78,218.7,3.4293]